fUST/lending_fUST_20240423
["ID","MTS","AMOUNT","RATE_DAILY","PERIOD"]
[323200199,1713803453804,-500.0,0.00021917,2]
[323200200,1713803453814,-6575.86,0.00021917,2]
[323200201,1713803453824,-150.0,0.00021918,2]
[323200202,1713803453834,-109101.43718817,0.00022,2]
[323200203,1713803453844,-158.76974363,0.00022,2]
[323200204,1713803453854,-3162.0,0.00022073,2]
[323200205,1713803453864,-150.0,0.0002212,2]
[323200206,1713803453874,-150.83408251,0.0002219,7]
[323200207,1713803453883,-500.0,0.00022191,2]
[323200208,1713803453893,-500.0,0.00022191,2]
[323200209,1713803453903,-500.0,0.00022191,2]
[323200210,1713803453913,-500.0,0.00022191,2]
[323200211,1713803453922,-500.0,0.00022191,2]
[323200212,1713803453933,-500.0,0.00022191,2]
[323200213,1713803453944,-504.08988695,0.00022191,2]
[323200214,1713803453954,-500.0,0.00022191,2]
[323200215,1713803453964,-500.0,0.00022191,2]
[323200216,1713803453974,-500.0,0.00022191,2]
[323200217,1713803453983,-177.47594909,0.00022191,2]
[323200218,1713803453993,-500.0,0.00022191,2]
[323200219,1713803454003,-528.24,0.00022191,2]
[323200220,1713803454013,-500.0,0.00022191,2]
[323200221,1713803454022,-544.97,0.00022191,2]
[323200222,1713803454034,-500.0,0.00022191,2]
[323200223,1713803454044,-508.85545054,0.00022191,2]
[323200224,1713803454054,-500.0,0.00022191,2]
[323200225,1713803454063,-500.0,0.00022191,2]
[323200226,1713803454073,-500.0,0.00022191,2]
[323200227,1713803454083,-500.0,0.00022191,2]
[323200228,1713803454093,-500.0,0.00022191,2]
[323200229,1713803454103,-500.0,0.00022191,2]
[323200230,1713803454112,-559.79,0.00022191,2]
[323200231,1713803454122,-904.94,0.00022191,2]
[323200232,1713803454131,-500.0,0.00022191,2]
[323200233,1713803454141,-500.0,0.00022191,2]
[323200234,1713803454150,-500.0,0.00022191,2]
[323200235,1713803454160,-1277.37,0.00022191,2]
[323200236,1713803454171,-500.0,0.00022191,2]
[323200237,1713803454181,-500.0,0.00022191,2]
[323200238,1713803454191,-500.0,0.00022191,2]
[323200239,1713803454201,-500.0,0.00022191,2]
[323200240,1713803454210,-500.0,0.00022191,2]
[323200241,1713803454220,-1183.54,0.00022191,2]
[323200242,1713803454230,-500.0,0.00022191,2]
[323200243,1713803454239,-500.0,0.00022191,2]
[323200244,1713803454249,-663.87,0.00022191,2]
[323200245,1713803454260,-257.21705148,0.00022191,2]
[323200246,1713803454269,-500.0,0.00022191,2]
[323200247,1713803454279,-500.0,0.00022191,2]
[323200248,1713803454289,-625.96,0.00022191,2]
[323200249,1713803454300,-500.0,0.00022191,2]
[323200250,1713803454309,-500.0,0.00022191,2]
[323200251,1713803454319,-500.0,0.00022191,2]
[323200252,1713803454329,-318.78716847,0.00022191,2]
[323200253,1713803454340,-500.0,0.00022191,2]
[323200254,1713803454349,-500.0,0.00022191,2]
[323200255,1713803454360,-500.0,0.00022191,2]
[323200256,1713803454369,-885.23,0.00022191,2]
[323200257,1713803454379,-500.0,0.00022191,2]
[323200258,1713803454389,-500.0,0.00022191,2]
[323200259,1713803454399,-500.0,0.00022191,2]
[323200260,1713803454409,-308.75441339,0.00022191,2]
[323200261,1713803454419,-500.0,0.00022191,2]
[323200262,1713803454428,-500.0,0.00022191,2]
[323200263,1713803454438,-500.0,0.00022191,2]
[323200264,1713803454448,-500.0,0.00022191,2]
[323200265,1713803454458,-500.0,0.00022191,2]
[323200266,1713803454468,-500.0,0.00022191,2]
[323200267,1713803454478,-517.26,0.00022191,2]
[323200268,1713803454488,-527.47,0.00022191,2]
[323200269,1713803454498,-500.0,0.00022191,2]
[323200270,1713803454509,-584.9838451,0.00022191,2]
[323200271,1713803454523,-500.0,0.00022191,2]
[323200272,1713803454535,-500.0,0.00022191,2]
[323200273,1713803454544,-500.0,0.00022191,2]
[323200274,1713803454555,-500.0,0.00022191,2]
[323200275,1713803454565,-500.0,0.00022191,2]
[323200276,1713803454575,-179.66,0.00022191,2]
[323200277,1713803454585,-269.11,0.00022191,2]
[323200278,1713803454595,-531.99,0.00022191,2]
[323200279,1713803454606,-500.0,0.00022191,2]
[323200280,1713803454616,-500.0,0.00022191,2]
[323200281,1713803454627,-1948.33,0.00022191,2]
[323200282,1713803454638,-510.49618961,0.00022191,2]
[323200283,1713803454648,-500.0,0.00022191,2]
[323200284,1713803454658,-500.0,0.00022191,2]
[323200285,1713803454667,-500.0,0.00022191,2]
[323200286,1713803454677,-500.0,0.00022191,2]
[323200287,1713803454687,-500.0,0.00022191,2]
[323200288,1713803454697,-627.86,0.00022191,2]
[323200289,1713803454708,-544.5,0.00022191,2]
[323200290,1713803454718,-500.0,0.00022191,2]
[323200291,1713803454729,-500.0,0.00022191,2]
[323200292,1713803454739,-786.17,0.00022191,2]
[323200293,1713803454748,-500.0,0.00022191,2]
[323200294,1713803454759,-500.0,0.00022191,2]
[323200295,1713803454770,-2183.24,0.00022191,2]
[323200296,1713803454782,-505.48,0.00022191,2]
[323200297,1713803454916,-500.0,0.00022191,2]
[323200298,1713803454925,-500.0,0.00022191,2]
[323200299,1713803454935,-500.0,0.00022191,2]
[323200300,1713803454944,-500.0,0.00022191,2]
[323200301,1713803454953,-1145.36,0.00022191,2]
[323200302,1713803454962,-500.0,0.00022191,2]
[323200303,1713803454971,-500.0,0.00022191,2]
[323200304,1713803454980,-1979.75,0.00022191,2]
[323200305,1713803454989,-500.0,0.00022191,2]
[323200306,1713803454998,-687.49,0.00022191,2]
[323200307,1713803455008,-502.10853275,0.00022191,2]
[323200308,1713803455017,-500.0,0.00022191,2]
[323200309,1713803455026,-427.16289909,0.00022191,2]
[323200310,1713803455036,-2805.14,0.00022191,2]
[323200311,1713803455045,-500.0,0.00022191,2]
[323200312,1713803455054,-500.0,0.00022191,2]
[323200313,1713803455063,-1457.76,0.00022191,2]
[323200314,1713803455072,-500.0,0.00022191,2]
[323200315,1713803455082,-500.0,0.00022191,2]
[323200316,1713803455092,-500.0,0.00022191,2]
[323200317,1713803455101,-500.0,0.00022191,2]
[323200318,1713803455111,-500.0,0.00022191,2]
[323200319,1713803455120,-500.0,0.00022191,2]
[323200320,1713803455129,-500.0,0.00022191,2]
[323200321,1713803455138,-500.0,0.00022191,2]
[323200322,1713803455147,-615.64,0.00022191,2]
[323200323,1713803455157,-500.0,0.00022191,2]
[323200324,1713803455167,-544.83,0.00022191,2]
[323200325,1713803455176,-500.0,0.00022191,2]
[323200326,1713803455185,-17777.59,0.00022191,2]
[323200327,1713803455194,-500.0,0.00022191,2]
[323200328,1713803455204,-500.0,0.00022191,2]
[323200329,1713803455212,-500.0,0.00022191,2]
[323200330,1713803455222,-3448.49,0.00022191,2]
[323200331,1713803455231,-500.0,0.00022191,2]
[323200332,1713803455241,-500.0,0.00022191,2]
[323200333,1713803455250,-2063.27,0.00022191,2]
[323200334,1713803455260,-500.0,0.00022191,2]
[323200335,1713803455269,-500.0,0.00022191,2]
[323200336,1713803455279,-500.0,0.00022191,2]
[323200337,1713803455289,-500.0,0.00022191,2]
[323200338,1713803455298,-500.0,0.00022191,2]
[323200339,1713803455308,-500.0,0.00022191,2]
[323200340,1713803455318,-500.0,0.00022191,2]
[323200341,1713803455328,-500.0,0.00022191,2]
[323200342,1713803455338,-536.1,0.00022191,2]
[323200343,1713803455347,-500.0,0.00022191,2]
[323200344,1713803455357,-500.0,0.00022191,2]
[323200345,1713803455366,-500.0,0.00022191,2]
[323200346,1713803455375,-328.47330269,0.00022191,2]
[323200347,1713803455386,-500.0,0.00022191,2]
[323200348,1713803455395,-500.0,0.00022191,2]
[323200349,1713803455405,-500.0,0.00022191,2]
[323200350,1713803455414,-500.0,0.00022191,2]
[323200351,1713803455424,-626.86,0.00022191,2]
[323200352,1713803455434,-958.49,0.00022191,2]
[323200353,1713803455445,-500.0,0.00022191,2]
[323200354,1713803455458,-6575.86,0.00022191,2]
[323200355,1713803455469,-2000.0,0.000224,2]
[323200356,1713803455478,-2000.0,0.000224,2]
[323200357,1713803455487,-500.0,0.00022465,2]
[323200358,1713803455497,-500.0,0.00022465,2]
[323200359,1713803455507,-500.0,0.00022465,2]
[323200360,1713803455519,-500.0,0.00022465,2]
[323200361,1713803455529,-500.0,0.00022465,2]
[323200362,1713803455538,-500.0,0.00022465,2]
[323200363,1713803455547,-500.0,0.00022465,2]
[323200364,1713803455556,-500.0,0.00022465,2]
[323200365,1713803455565,-500.0,0.00022465,2]
[323200366,1713803455575,-500.0,0.00022465,2]
[323200367,1713803455584,-528.24,0.00022465,2]
[323200368,1713803455594,-500.0,0.00022465,2]
[323200369,1713803455604,-544.97,0.00022465,2]
[323200370,1713803455614,-500.0,0.00022465,2]
[323200371,1713803455623,-500.0,0.00022465,2]
[323200372,1713803455632,-500.0,0.00022465,2]
[323200373,1713803455642,-500.0,0.00022465,2]
[323200374,1713803455651,-500.0,0.00022465,2]
[323200375,1713803455660,-500.0,0.00022465,2]
[323200376,1713803455670,-559.79,0.00022465,2]
[323200377,1713803455679,-904.94,0.00022465,2]
[323200378,1713803455689,-286.80595148,0.00022465,2]
[323200379,1713803455699,-500.0,0.00022465,2]
[323200380,1713803455709,-500.0,0.00022465,2]
[323200381,1713803455719,-1277.37,0.00022465,2]
[323200382,1713803455728,-500.0,0.00022465,2]
[323200383,1713803455737,-500.0,0.00022465,2]
[323200384,1713803455747,-500.0,0.00022465,2]
[323200385,1713803455756,-500.0,0.00022465,2]
[323200386,1713803455765,-500.0,0.00022465,2]
[323200387,1713803455775,-1183.54,0.00022465,2]
[323200388,1713803455785,-500.0,0.00022465,2]
[323200389,1713803455794,-500.0,0.00022465,2]
[323200390,1713803455803,-663.87,0.00022465,2]
[323200391,1713803455813,-500.0,0.00022465,2]
[323200392,1713803455822,-639.60172389,0.00022465,2]
[323200393,1713803455832,-625.96,0.00022465,2]
[323200394,1713803455841,-500.0,0.00022465,2]
[323200395,1713803455851,-500.0,0.00022465,2]
[323200396,1713803455860,-500.0,0.00022465,2]
[323200397,1713803455870,-500.0,0.00022465,2]
[323200398,1713803455879,-500.0,0.00022465,2]
[323200399,1713803455888,-885.23,0.00022465,2]
[323200400,1713803455898,-500.0,0.00022465,2]
[323200401,1713803455907,-500.0,0.00022465,2]
[323200402,1713803455916,-500.0,0.00022465,2]
[323200403,1713803455926,-500.0,0.00022465,2]
[323200404,1713803455935,-500.0,0.00022465,2]
[323200405,1713803455945,-500.0,0.00022465,2]
[323200406,1713803455954,-500.0,0.00022465,2]
[323200407,1713803455963,-500.0,0.00022465,2]
[323200408,1713803455972,-500.0,0.00022465,2]
[323200409,1713803455982,-517.26,0.00022465,2]
[323200410,1713803455991,-527.47,0.00022465,2]
[323200411,1713803456001,-409.04406786,0.00022465,2]
[323200412,1713803456009,-500.0,0.00022465,2]
[323200413,1713803456018,-181.22350144,0.00022465,2]
[323200414,1713803456028,-500.0,0.00022465,2]
[323200415,1713803456037,-500.0,0.00022465,2]
[323200416,1713803456047,-500.0,0.00022465,2]
[323200417,1713803456056,-531.99,0.00022465,2]
[323200418,1713803456065,-500.0,0.00022465,2]
[323200419,1713803456074,-500.0,0.00022465,2]
[323200420,1713803456083,-1948.33,0.00022465,2]
[323200421,1713803456092,-500.0,0.00022465,2]
[323200422,1713803456101,-500.0,0.00022465,2]
[323200423,1713803456110,-500.0,0.00022465,2]
[323200424,1713803456119,-500.0,0.00022465,2]
[323200425,1713803456128,-500.0,0.00022465,2]
[323200426,1713803456137,-627.86,0.00022465,2]
[323200427,1713803456147,-544.5,0.00022465,2]
[323200428,1713803456156,-500.0,0.00022465,2]
[323200429,1713803456165,-786.17,0.00022465,2]
[323200430,1713803456175,-2183.24,0.00022465,2]
[323200431,1713803456184,-505.48,0.00022465,2]
[323200432,1713803456194,-500.0,0.00022465,2]
[323200433,1713803456203,-500.0,0.00022465,2]
[323200434,1713803456212,-500.0,0.00022465,2]
[323200435,1713803456221,-1145.36,0.00022465,2]
[323200436,1713803456230,-500.0,0.00022465,2]
[323200437,1713803456239,-500.0,0.00022465,2]
[323200438,1713803456249,-1979.75,0.00022465,2]
[323200439,1713803456258,-500.0,0.00022465,2]
[323200440,1713803456268,-687.49,0.00022465,2]
[323200441,1713803456279,-500.0,0.00022465,2]
[323200442,1713803456288,-2805.14,0.00022465,2]
[323200443,1713803456297,-500.0,0.00022465,2]
[323200444,1713803456307,-1457.76,0.00022465,2]
[323200445,1713803456316,-500.0,0.00022465,2]
[323200446,1713803456326,-500.0,0.00022465,2]
[323200447,1713803456335,-500.0,0.00022465,2]
[323200448,1713803456345,-500.0,0.00022465,2]
[323200449,1713803456354,-500.0,0.00022465,2]
[323200450,1713803456363,-500.0,0.00022465,2]
[323200451,1713803456374,-500.0,0.00022465,2]
[323200452,1713803456384,-500.0,0.00022465,2]
[323200453,1713803456393,-615.64,0.00022465,2]
[323200454,1713803456402,-500.0,0.00022465,2]
[323200455,1713803456411,-544.83,0.00022465,2]
[323200456,1713803456421,-500.0,0.00022465,2]
[323200457,1713803456430,-17777.59,0.00022465,2]
[323200458,1713803456440,-500.0,0.00022465,2]
[323200459,1713803456450,-500.0,0.00022465,2]
[323200460,1713803456460,-500.0,0.00022465,2]
[323200461,1713803456469,-3448.49,0.00022465,2]
[323200462,1713803456479,-500.0,0.00022465,2]
[323200463,1713803456488,-500.0,0.00022465,2]
[323200464,1713803456497,-2063.27,0.00022465,2]
[323200465,1713803456511,-500.0,0.00022465,2]
[323200466,1713803456522,-500.0,0.00022465,2]
[323200467,1713803456531,-500.0,0.00022465,2]
[323200468,1713803456540,-500.0,0.00022465,2]
[323200469,1713803456550,-500.0,0.00022465,2]
[323200470,1713803456559,-500.0,0.00022465,2]
[323200471,1713803456568,-500.0,0.00022465,2]
[323200472,1713803456577,-536.1,0.00022465,2]
[323200473,1713803456587,-500.0,0.00022465,2]
[323200474,1713803456597,-500.0,0.00022465,2]
[323200475,1713803456607,-500.0,0.00022465,2]
[323200476,1713803456616,-500.0,0.00022465,2]
[323200477,1713803456625,-500.0,0.00022465,2]
[323200478,1713803456634,-500.0,0.00022465,2]
[323200479,1713803456643,-626.86,0.00022465,2]
[323200480,1713803456652,-958.49,0.00022465,2]
[323200481,1713803456661,-520.62598211,0.00022465,2]
[323200482,1713803456670,-6575.86,0.00022465,2]
[323200483,1713803456680,-1673.50746248,0.000225,2]
[323200484,1713803456689,-620.0000003,0.00022512,2]
[323200485,1713803456698,-150.83408251,0.00022643,4]
[323200486,1713803456708,-500.0,0.00022739,2]
[323200487,1713803456717,-500.0,0.00022739,2]
[323200488,1713803456726,-500.0,0.00022739,2]
[323200489,1713803456735,-643.21786482,0.00022739,2]
[323200490,1713803456744,-500.0,0.00022739,2]
[323200491,1713803456754,-500.0,0.00022739,2]
[323200492,1713803456763,-500.0,0.00022739,2]
[323200493,1713803456772,-500.0,0.00022739,2]
[323200494,1713803456781,-500.0,0.00022739,2]
[323200495,1713803456790,-528.24,0.00022739,2]
[323200496,1713803456799,-500.0,0.00022739,2]
[323200497,1713803456809,-544.97,0.00022739,2]
[323200498,1713803456818,-500.0,0.00022739,2]
[323200499,1713803456827,-500.0,0.00022739,2]
[323200500,1713803456836,-500.0,0.00022739,2]
[323200501,1713803456846,-396.82949731,0.00022739,2]
[323200502,1713803456855,-259.94414828,0.00022739,2]
[323200503,1713803456864,-500.0,0.00022739,2]
[323200504,1713803456873,-559.79,0.00022739,2]
[323200505,1713803456882,-904.94,0.00022739,2]
[323200506,1713803456892,-500.0,0.00022739,2]
[323200507,1713803456901,-500.0,0.00022739,2]
[323200508,1713803456910,-1277.37,0.00022739,2]
[323200509,1713803456920,-500.0,0.00022739,2]
[323200510,1713803456929,-500.0,0.00022739,2]
[323200511,1713803456938,-500.0,0.00022739,2]
[323200512,1713803456947,-500.0,0.00022739,2]
[323200513,1713803456957,-500.0,0.00022739,2]
[323200514,1713803456967,-1183.54,0.00022739,2]
[323200515,1713803456976,-500.0,0.00022739,2]
[323200516,1713803456985,-500.0,0.00022739,2]
[323200517,1713803456995,-663.87,0.00022739,2]
[323200518,1713803457005,-500.0,0.00022739,2]
[323200519,1713803457015,-625.96,0.00022739,2]
[323200520,1713803457024,-500.0,0.00022739,2]
[323200521,1713803457034,-500.0,0.00022739,2]
[323200522,1713803457043,-500.0,0.00022739,2]
[323200523,1713803457052,-500.0,0.00022739,2]
[323200524,1713803457063,-885.23,0.00022739,2]
[323200525,1713803457072,-500.0,0.00022739,2]
[323200526,1713803457081,-500.0,0.00022739,2]
[323200527,1713803457090,-500.0,0.00022739,2]
[323200528,1713803457099,-500.0,0.00022739,2]
[323200529,1713803457109,-500.0,0.00022739,2]
[323200530,1713803457118,-500.0,0.00022739,2]
[323200531,1713803457127,-540.57202942,0.00022739,2]
[323200532,1713803457136,-500.0,0.00022739,2]
[323200533,1713803457145,-517.26,0.00022739,2]
[323200534,1713803457154,-527.47,0.00022739,2]
[323200535,1713803457163,-500.0,0.00022739,2]
[323200536,1713803457172,-500.0,0.00022739,2]
[323200537,1713803457181,-500.0,0.00022739,2]
[323200538,1713803457191,-500.0,0.00022739,2]
[323200539,1713803457200,-531.99,0.00022739,2]
[323200540,1713803457209,-196.56986936,0.00022739,2]
[323200541,1713803457218,-500.0,0.00022739,2]
[323200542,1713803457228,-1948.33,0.00022739,2]
[323200543,1713803457237,-500.0,0.00022739,2]
[323200544,1713803457246,-500.0,0.00022739,2]
[323200545,1713803457255,-500.0,0.00022739,2]
[323200546,1713803457263,-500.0,0.00022739,2]
[323200547,1713803457272,-500.0,0.00022739,2]
[323200548,1713803457281,-627.86,0.00022739,2]
[323200549,1713803457291,-544.5,0.00022739,2]
[323200550,1713803457300,-500.0,0.00022739,2]
[323200551,1713803457310,-786.17,0.00022739,2]
[323200552,1713803457319,-2183.24,0.00022739,2]
[323200553,1713803457329,-505.48,0.00022739,2]
[323200554,1713803457338,-500.0,0.00022739,2]
[323200555,1713803457346,-500.0,0.00022739,2]
[323200556,1713803457355,-312.0193454,0.00022739,2]
[323200557,1713803457365,-1145.36,0.00022739,2]
[323200558,1713803457374,-500.0,0.00022739,2]
[323200559,1713803457383,-500.0,0.00022739,2]
[323200560,1713803457392,-1979.75,0.00022739,2]
[323200561,1713803457401,-500.0,0.00022739,2]
[323200562,1713803457411,-687.49,0.00022739,2]
[323200563,1713803457421,-500.0,0.00022739,2]
[323200564,1713803457430,-2805.14,0.00022739,2]
[323200565,1713803457439,-500.0,0.00022739,2]
[323200566,1713803457448,-1457.76,0.00022739,2]
[323200567,1713803457457,-500.0,0.00022739,2]
[323200568,1713803457466,-500.0,0.00022739,2]
[323200569,1713803457476,-500.0,0.00022739,2]
[323200570,1713803457485,-500.0,0.00022739,2]
[323200571,1713803457494,-500.0,0.00022739,2]
[323200572,1713803457504,-500.0,0.00022739,2]
[323200573,1713803457515,-500.0,0.00022739,2]
[323200574,1713803457526,-500.0,0.00022739,2]
[323200575,1713803457536,-615.64,0.00022739,2]
[323200576,1713803457546,-500.0,0.00022739,2]
[323200577,1713803457556,-544.83,0.00022739,2]
[323200578,1713803457565,-500.0,0.00022739,2]
[323200579,1713803457574,-17777.59,0.00022739,2]
[323200580,1713803457583,-500.0,0.00022739,2]
[323200581,1713803457593,-500.0,0.00022739,2]
[323200582,1713803457603,-500.0,0.00022739,2]
[323200583,1713803457612,-3448.49,0.00022739,2]
[323200584,1713803457622,-500.0,0.00022739,2]
[323200585,1713803457631,-500.0,0.00022739,2]
[323200586,1713803457640,-2063.27,0.00022739,2]
[323200587,1713803457650,-500.0,0.00022739,2]
[323200588,1713803457767,-500.0,0.00022739,2]
[323200589,1713803457777,-500.0,0.00022739,2]
[323200590,1713803457787,-500.0,0.00022739,2]
[323200591,1713803457797,-500.0,0.00022739,2]
[323200592,1713803457806,-500.0,0.00022739,2]
[323200593,1713803457815,-500.0,0.00022739,2]
[323200594,1713803457825,-536.1,0.00022739,2]
[323200595,1713803457835,-500.0,0.00022739,2]
[323200596,1713803457845,-500.0,0.00022739,2]
[323200597,1713803457854,-500.0,0.00022739,2]
[323200598,1713803457863,-500.0,0.00022739,2]
[323200599,1713803457872,-500.0,0.00022739,2]
[323200600,1713803457881,-513.32001377,0.00022739,2]
[323200601,1713803457891,-626.86,0.00022739,2]
[323200602,1713803457900,-958.49,0.00022739,2]
[323200603,1713803457909,-6575.86,0.00022739,2]
[323200604,1713803457919,-159.83537727,0.00022782,2]
[323200605,1713803457928,-2000.0,0.000228,2]
[323200606,1713803457938,-155.60283886,0.00023,2]
[323200607,1713803457947,-1697.53009676,0.00023,2]
[323200608,1713803457956,-481.88486166,0.00023,2]
[323200609,1713803457966,-1500.0,0.00023,2]
[323200610,1713803457976,-1500.0,0.00023,2]
[323200611,1713803457985,-1500.0,0.00023,2]
[323200612,1713803457994,-1500.0,0.00023,2]
[323200613,1713803458004,-1500.0,0.00023,2]
[323200614,1713803458013,-1500.0,0.00023,2]
[323200615,1713803458022,-1500.0,0.00023,2]
[323200616,1713803458033,-1236.69,0.00023,2]
[323200617,1713803458043,-1500.0,0.00023,2]
[323200618,1713803458053,-1500.0,0.00023,2]
[323200619,1713803458062,-1500.0,0.00023,2]
[323200620,1713803458071,-500.0,0.00023013,2]
[323200621,1713803458080,-500.0,0.00023013,2]
[323200622,1713803458089,-500.0,0.00023013,2]
[323200623,1713803458099,-500.0,0.00023013,2]
[323200624,1713803458108,-500.0,0.00023013,2]
[323200625,1713803458117,-500.0,0.00023013,2]
[323200626,1713803458126,-500.0,0.00023013,2]
[323200627,1713803458134,-500.0,0.00023013,2]
[323200628,1713803458143,-528.24,0.00023013,2]
[323200629,1713803458152,-217.83283192,0.00023013,2]
[323200630,1713803458162,-544.97,0.00023013,2]
[323200631,1713803458171,-500.0,0.00023013,2]
[323200632,1713803458180,-500.0,0.00023013,2]
[323200633,1713803458189,-500.0,0.00023013,2]
[323200634,1713803458198,-500.0,0.00023013,2]
[323200635,1713803458208,-559.79,0.00023013,2]
[323200636,1713803458218,-904.94,0.00023013,2]
[323200637,1713803458227,-500.0,0.00023013,2]
[323200638,1713803458236,-500.0,0.00023013,2]
[323200639,1713803458245,-1277.37,0.00023013,2]
[323200640,1713803458254,-500.0,0.00023013,2]
[323200641,1713803458263,-500.0,0.00023013,2]
[323200642,1713803458272,-226.72483048,0.00023013,2]
[323200643,1713803458282,-500.0,0.00023013,2]
[323200644,1713803458291,-500.0,0.00023013,2]
[323200645,1713803458300,-1183.54,0.00023013,2]
[323200646,1713803458310,-500.0,0.00023013,2]
[323200647,1713803458319,-500.0,0.00023013,2]
[323200648,1713803458328,-663.87,0.00023013,2]
[323200649,1713803458337,-244.92194742,0.00023013,2]
[323200650,1713803458346,-625.96,0.00023013,2]
[323200651,1713803458356,-500.0,0.00023013,2]
[323200652,1713803458366,-500.0,0.00023013,2]
[323200653,1713803458376,-500.0,0.00023013,2]
[323200654,1713803458385,-500.0,0.00023013,2]
[323200655,1713803458393,-885.23,0.00023013,2]
[323200656,1713803458403,-500.0,0.00023013,2]
[323200657,1713803458412,-500.0,0.00023013,2]
[323200658,1713803458422,-500.0,0.00023013,2]
[323200659,1713803458431,-500.0,0.00023013,2]
[323200660,1713803458440,-500.0,0.00023013,2]
[323200661,1713803458449,-500.0,0.00023013,2]
[323200662,1713803458458,-485.34057304,0.00023013,2]
[323200663,1713803458468,-517.26,0.00023013,2]
[323200664,1713803458477,-527.47,0.00023013,2]
[323200665,1713803458486,-500.0,0.00023013,2]
[323200666,1713803458495,-500.0,0.00023013,2]
[323200667,1713803458507,-500.0,0.00023013,2]
[323200668,1713803458518,-500.0,0.00023013,2]
[323200669,1713803458527,-531.99,0.00023013,2]
[323200670,1713803458537,-500.0,0.00023013,2]
[323200671,1713803458547,-1948.33,0.00023013,2]
[323200672,1713803458557,-500.0,0.00023013,2]
[323200673,1713803458566,-500.0,0.00023013,2]
[323200674,1713803458575,-500.0,0.00023013,2]
[323200675,1713803458585,-500.0,0.00023013,2]
[323200676,1713803458596,-500.0,0.00023013,2]
[323200677,1713803458606,-627.86,0.00023013,2]
[323200678,1713803458615,-544.5,0.00023013,2]
[323200679,1713803458625,-500.0,0.00023013,2]
[323200680,1713803458634,-786.17,0.00023013,2]
[323200681,1713803458644,-2183.24,0.00023013,2]
[323200682,1713803458653,-505.48,0.00023013,2]
[323200683,1713803458663,-500.0,0.00023013,2]
[323200684,1713803458672,-500.0,0.00023013,2]
[323200685,1713803458682,-1145.36,0.00023013,2]
[323200686,1713803458691,-246.83652566,0.00023013,2]
[323200687,1713803458701,-500.0,0.00023013,2]
[323200688,1713803458711,-1979.75,0.00023013,2]
[323200689,1713803458721,-500.0,0.00023013,2]
[323200690,1713803458731,-687.49,0.00023013,2]
[323200691,1713803458741,-500.0,0.00023013,2]
[323200692,1713803458751,-2805.14,0.00023013,2]
[323200693,1713803458760,-500.0,0.00023013,2]
[323200694,1713803458770,-1457.76,0.00023013,2]
[323200695,1713803458779,-500.0,0.00023013,2]
[323200696,1713803458792,-500.0,0.00023013,2]
[323200697,1713803458801,-500.0,0.00023013,2]
[323200698,1713803458811,-500.0,0.00023013,2]